bitfinex-derivatives/quotes_BTCF0:USTF0_20250929
["timestamp","ask_amount","ask_price","bid_price","bid_amount"]
[1759167347920,0.479609,113870.0,113860.0,1.17961251]
[1759167351014,0.129882,113870.0,113860.0,1.17961251]
[1759167351219,0.129882,113870.0,113860.0,1.61710921]
[1759167351821,0.129882,113870.0,113860.0,1.97790921]
[1759167353321,0.129882,113870.0,113860.0,2.00942824]
[1759167355229,0.129882,113870.0,113860.0,1.98578273]
[1759167355723,0.129882,113870.0,113860.0,2.00941125]
[1759167357325,0.129882,113870.0,113860.0,1.98578273]
[1759167359125,0.129882,113870.0,113860.0,1.53721303]
[1759167359829,0.479609,113870.0,113860.0,1.53721303]
[1759167360031,0.479609,113870.0,113860.0,1.62498263]
[1759167360529,0.129882,113870.0,113860.0,1.62498263]
[1759167363334,0.129882,113870.0,113860.0,1.6171256]
[1759167363936,0.129882,113870.0,113860.0,1.9779256]
[1759167367139,0.129882,113870.0,113860.0,1.98578263]
[1759167368431,0.129882,113870.0,113860.0,1.28632863]
[1759167368634,0.129882,113870.0,113860.0,1.98578263]
[1759167372742,0.01922,113870.0,113860.0,2.75566656]
[1759167372941,0.006,113870.0,113860.0,2.80302928]
[1759167373146,0.006,113870.0,113860.0,2.77151025]
[1759167373442,0.0937619,113870.0,113860.0,2.37442053]
[1759167373747,0.1068219,113870.0,113860.0,2.37442053]
[1759167377844,0.1068219,113870.0,113860.0,1.58719693]
[1759167378049,0.1068219,113870.0,113860.0,2.42179948]
[1759167378344,0.4796089,113870.0,113860.0,0.87377588]
[1759167378543,0.4796089,113870.0,113860.0,1.25509084]
[1759167380555,0.4796089,113870.0,113860.0,1.70366044]
[1759167381753,0.4796089,113870.0,113860.0,1.34286044]
[1759167382051,0.4796089,113870.0,113860.0,1.70366044]
[1759167384046,0.4796089,113870.0,113860.0,1.34286044]
[1759167384746,0.04212,113870.0,113860.0,1.69258744]
[1759167384947,0.01906,113870.0,113860.0,2.02179948]
[1759167385246,0.006,113870.0,113860.0,2.72414753]
[1759167385453,0.006,113870.0,113860.0,2.78718801]
[1759167385952,0.006,113870.0,113860.0,2.43746101]
[1759167387253,0.1233546,113880.0,113870.0,0.087762]
[1759167387455,0.1233546,113880.0,113870.0,0.87723918]
[1759167387855,0.1233546,113880.0,113870.0,0.84565911]
[1759167388356,0.1233546,113880.0,113870.0,0.87723727]
[1759167388551,0.01322,113880.0,113870.0,1.22696427]
[1759167388754,0.14130883,113890.0,113880.0,0.0877543]
[1759167388954,0.14130883,113890.0,113880.0,2.03306682]
[1759167390059,0.14830883,113890.0,113880.0,2.03306682]
[1759167390258,0.14830883,113890.0,113880.0,1.98570371]
[1759167392363,0.14830883,113890.0,113880.0,1.63596961]
[1759167393164,0.12592883,113890.0,113880.0,1.63596961]
[1759167393365,0.12592883,113890.0,113880.0,1.68333272]
[1759167394156,0.03817703,113890.0,113880.0,1.68333272]
[1759167394357,0.02495703,113890.0,113880.0,2.44200517]
[1759167394663,0.007,113890.0,113880.0,2.41042976]
[1759167395354,0.0947465,113890.0,113880.0,2.41042976]
[1759167399460,0.0947465,113890.0,113880.0,2.01042976]
[1759167401358,0.007,113890.0,113880.0,2.01042976]
[1759167401559,0.007,113890.0,113880.0,2.41042976]
[1759167401866,0.007,113890.0,113880.0,2.01042976]
[1759167403566,0.007,113890.0,113880.0,2.04194241]
[1759167407572,0.007,113890.0,113880.0,2.01042976]
[1759167408971,0.01991,113890.0,113880.0,2.01042976]
[1759167409871,0.1076563,113890.0,113880.0,1.66070986]
[1759167410074,0.1076563,113890.0,113880.0,1.65175731]
[1759167412978,0.1076563,113890.0,113880.0,1.30203741]
[1759167413184,0.1076563,113890.0,113880.0,1.65175731]
[1759167413381,0.1076563,113890.0,113880.0,1.63592011]
[1759167413775,0.5076563,113890.0,113880.0,1.22209088]
[1759167414080,0.5076563,113890.0,113880.0,1.19056497]
[1759167414477,0.5076563,113890.0,113880.0,1.27831897]
[1759167415781,0.5076563,113890.0,113880.0,1.54028487]
[1759167415975,0.5076563,113890.0,113880.0,1.62803887]
[1759167418282,0.57648871,113890.0,113880.0,1.62803887]
[1759167420682,0.17648871,113890.0,113880.0,1.65956478]
[1759167422288,0.17548871,113890.0,113880.0,1.65956478]
[1759167422486,0.17548871,113890.0,113880.0,1.63591981]
[1759167422780,0.17048871,113890.0,113880.0,1.63591981]
[1759167423486,0.17048871,113890.0,113880.0,1.65175701]
[1759167431990,0.17048871,113890.0,113880.0,1.30203711]
[1759167432192,0.17048871,113890.0,113880.0,1.65175701]
[1759167432990,0.17048871,113890.0,113880.0,1.56400301]
[1759167433391,0.17048871,113890.0,113880.0,1.635953]
[1759167435691,0.17048871,113890.0,113880.0,1.2862331]
[1759167435991,0.17048871,113890.0,113880.0,1.635953]
[1759167442294,0.17048871,113890.0,113880.0,1.68331611]
[1759167442691,0.001,113890.0,113880.0,2.00147691]
[1759167442890,0.001,113890.0,113880.0,2.40147691]
[1759167443100,0.1009585,113900.0,113890.0,0.0877462]
[1759167443296,0.1238785,113900.0,113890.0,0.84560221]
[1759167443596,0.01384,113910.0,113900.0,0.0877385]
[1759167443800,0.1015708,113910.0,113900.0,1.68258757]
[1759167444701,0.1015708,113910.0,113900.0,1.59484907]
[1759167445198,0.1015708,113910.0,113900.0,1.54751296]
[1759167445396,0.1075708,113910.0,113900.0,1.57115938]
[1759167446101,0.1015708,113910.0,113900.0,1.57115938]
[1759167446399,0.1105708,113910.0,113900.0,1.57115938]
[1759167448001,0.1105708,113910.0,113900.0,1.65889758]
[1759167450102,0.1105708,113910.0,113900.0,1.57115938]
[1759167452206,0.1105708,113910.0,113900.0,1.92059602]
[1759167452703,0.1105708,113910.0,113900.0,1.22143948]
[1759167452901,0.84386907,113910.0,113900.0,0.82908642]
[1759167453200,0.1246082,113900.0,113890.0,0.78638218]
[1759167453501,0.1246082,113900.0,113890.0,1.5364627]
[1759167454300,0.1306082,113900.0,113890.0,1.6242086]
[1759167454501,0.1316082,113900.0,113890.0,1.27463033]
[1759167454700,0.1316082,113900.0,113890.0,1.6242086]
[1759167463413,0.1316082,113900.0,113890.0,1.65576166]
[1759167463610,0.04387,113900.0,113890.0,1.65576166]
[1759167463811,0.02095,113900.0,113890.0,2.00533993]
[1759167464110,0.007,113900.0,113890.0,2.40533993]
[1759167464316,0.007,113900.0,113890.0,2.45267604]
[1759167464917,0.007,113900.0,113890.0,2.40533993]
[1759167465212,0.007,113900.0,113890.0,2.45267604]
[1759167465418,0.1086882,113900.0,113890.0,2.45267604]
[1759167466122,0.02095,113900.0,113890.0,2.45267604]
[1759167466324,0.007,113900.0,113890.0,2.45267604]
[1759167467216,0.007,113900.0,113890.0,2.42112298]
[1759167469525,0.02031,113900.0,113890.0,2.42112298]
[1759167469725,0.1080482,113900.0,113890.0,2.42112298]
[1759167471130,0.02031,113900.0,113890.0,2.42112298]
[1759167471429,0.1080482,113900.0,113890.0,2.42112298]
[1759167473220,0.007,113900.0,113890.0,2.42112298]
[1759167473427,0.007,113900.0,113890.0,2.72336514]
[1759167473628,0.007,113900.0,113890.0,2.78640562]
[1759167474919,0.0877308,113910.0,113900.0,0.0877382]
[1759167475118,0.0877308,113910.0,113900.0,1.54456469]
[1759167476226,0.0877308,113910.0,113900.0,1.54956469]
[1759167476427,0.1010408,113910.0,113900.0,1.19498642]
[1759167477121,0.1040408,113910.0,113900.0,1.19498642]
[1759167479723,0.1261808,113910.0,113900.0,1.19498642]
[1759167479928,0.1261808,113910.0,113900.0,0.40809168]
[1759167480127,0.1261808,113910.0,113900.0,1.10724822]
[1759167480324,0.1261808,113910.0,113900.0,1.13876109]
[1759167480528,0.1261808,113910.0,113900.0,1.22649929]
[1759167484336,0.47575907,113910.0,113900.0,0.78918282]
[1759167484533,0.87575907,113910.0,113900.0,1.57044405]
[1759167484736,0.5261808,113910.0,113900.0,1.92002232]
[1759167485035,0.5261808,113910.0,113900.0,2.00776052]
[1759167490034,0.5261808,113910.0,113900.0,1.98412761]
[1759167490240,0.1261808,113910.0,113900.0,1.98412761]
[1759167493442,0.1040408,113910.0,113900.0,1.98412761]
[1759167493845,0.01631,113910.0,113900.0,2.33370588]
[1759167494037,0.003,113910.0,113900.0,2.34948469]
[1759167494343,0.01627,113910.0,113900.0,2.34948469]
[1759167494536,0.01627,113910.0,113900.0,1.99990642]
[1759167494846,0.1040007,113910.0,113900.0,1.99990642]
[1759167496143,0.1040007,113910.0,113900.0,1.30074988]
[1759167496443,0.1040007,113910.0,113900.0,1.99990642]
[1759167496636,0.1040007,113910.0,113900.0,1.99978642]
[1759167496938,0.1040007,113910.0,113900.0,1.19498642]
[1759167497237,0.1040007,113910.0,113900.0,1.99974642]
[1759167497645,0.1040007,113910.0,113900.0,1.95245474]
[1759167498245,0.1040007,113910.0,113900.0,1.98397913]
[1759167500744,0.1040007,113910.0,113900.0,2.03127081]
[1759167503449,0.1040007,113910.0,113900.0,1.97610544]
[1759167508748,0.1040007,113910.0,113900.0,1.97610564]
[1759167512255,0.1040007,113910.0,113900.0,1.62650122]
[1759167512847,0.1040007,113910.0,113900.0,1.65802561]
[1759167513453,0.1040007,113910.0,113900.0,1.6501422]
[1759167530672,0.003,113910.0,113900.0,1.6501422]
[1759167533970,0.0907305,113910.0,113900.0,1.6501422]
[1759167534369,0.003,113910.0,113900.0,1.6501422]
[1759167534568,0.01384,113920.0,113900.0,2.39969432]
[1759167534772,0.1010223,113940.0,113920.0,0.0877228]
[1759167534972,0.19217009,113940.0,113930.0,1.54608575]
[1759167536269,0.19217009,113940.0,113930.0,1.51455212]
[1759167537675,0.19917009,113940.0,113930.0,1.51455212]
[1759167538266,0.19217009,113940.0,113930.0,1.5381639]
[1759167538472,0.19617009,113940.0,113930.0,1.5381639]
[1759167543470,0.2277658,113940.0,113930.0,1.51455212]
[1759167543778,0.2277658,113940.0,113930.0,1.165]
[1759167543979,0.2277658,113940.0,113930.0,1.51455212]
[1759167544378,0.1227251,113930.0,113920.0,0.3608]
[1759167544571,0.1227328,113920.0,113910.0,0.8216904]
[1759167544770,0.1227328,113920.0,113910.0,1.6256504]
[1759167545079,0.1011028,113920.0,113910.0,1.6256504]
[1759167545672,0.1061028,113920.0,113910.0,1.6256504]
[1759167545878,0.1061028,113920.0,113910.0,1.60203862]
[1759167546481,0.1010993,113930.0,113920.0,0.0877228]
[1759167546684,0.1010993,113930.0,113920.0,0.80665247]
[1759167546978,0.2237667,113940.0,113930.0,0.0877151]
[1759167547274,0.13267781,113950.0,113940.0,0.0877074]
[1759167547495,0.0876997,113950.0,113940.0,1.14761164]
[1759167548777,0.22584258,113960.0,113950.0,0.0876997]
[1759167548977,0.22584258,113960.0,113950.0,1.60197182]
[1759167549875,0.19424687,113960.0,113950.0,1.60197182]
[1759167550077,0.20424687,113960.0,113950.0,1.60197182]
[1759167550877,0.01338,113960.0,113950.0,1.60197182]
[1759167551176,0.02438,113960.0,113950.0,1.60197182]
[1759167551381,0.011,113960.0,113950.0,1.60197182]
[1759167553683,0.112072,113960.0,113950.0,1.62240139]
[1759167554179,0.112072,113960.0,113950.0,0.47805082]
[1759167554377,0.133702,113960.0,113950.0,1.62232139]
[1759167555281,0.112072,113960.0,113950.0,1.62232139]
[1759167556084,0.02438,113960.0,113950.0,1.62232139]
[1759167556481,0.011,113960.0,113950.0,1.62232139]
[1759167557585,0.098692,113960.0,113950.0,1.63121215]
[1759167558586,0.098692,113960.0,113950.0,0.82749215]
[1759167558782,0.098692,113960.0,113950.0,1.63113215]
[1759167559186,0.111832,113960.0,113950.0,1.63113215]
[1759167559581,0.133992,113960.0,113950.0,1.62224139]
[1759167560489,0.02414,113960.0,113950.0,1.62224139]
[1759167560786,0.02414,113960.0,113950.0,1.63104008]
[1759167561486,0.111832,113960.0,113950.0,1.63104008]
[1759167561683,0.111832,113960.0,113950.0,1.62224139]
[1759167561886,0.02414,113960.0,113950.0,1.62224139]
[1759167562490,0.011,113960.0,113950.0,1.62224139]
[1759167563088,0.011,113960.0,113950.0,1.63120978]
[1759167563587,0.011,113960.0,113950.0,1.65482156]
[1759167567091,0.011,113960.0,113950.0,1.68635519]
[1759167571891,0.011,113960.0,113950.0,1.66274341]
[1759167574290,0.011,113960.0,113950.0,2.01156379]
[1759167576292,0.011,113960.0,113950.0,2.05886403]
[1759167577386,0.011,113960.0,113950.0,2.0273304]
[1759167580790,0.011,113960.0,113950.0,2.77651665]
[1759167580989,0.101062,113980.0,113970.0,0.0876839]
[1759167581188,0.101062,113980.0,113970.0,2.00522277]
[1759167582295,0.01338,113980.0,113970.0,2.00522277]
[1759167582796,0.03838,113980.0,113970.0,2.00522277]
[1759167583489,0.025,113980.0,113970.0,2.34241433]
[1759167587598,0.1126759,113980.0,113970.0,2.34241433]
[1759167587800,0.1258159,113980.0,113970.0,2.34229433]
[1759167588792,0.1258159,113980.0,113970.0,1.53913433]
[1759167588999,0.1258159,113980.0,113970.0,2.34225433]
[1759167591896,0.1126759,113980.0,113970.0,2.34225433]
[1759167592504,0.1126759,113980.0,113970.0,1.53913433]
[1759167592701,0.1126759,113980.0,113970.0,2.34221433]
[1759167593098,0.1257359,113980.0,113970.0,2.34217433]
[1759167593501,0.1257359,113980.0,113970.0,2.33425969]
[1759167595201,0.1257359,113980.0,113970.0,1.53121969]
[1759167595407,0.1257359,113980.0,113970.0,2.33425969]
[1759167596206,0.1257359,113980.0,113970.0,2.33421969]
[1759167599798,0.1126759,113980.0,113970.0,2.33421969]
[1759167600512,0.025,113980.0,113970.0,2.33422088]
[1759167600905,0.112676,113980.0,113970.0,2.33422088]
[1759167603007,0.125736,113980.0,113970.0,2.33422088]
[1759167603512,0.125736,113980.0,113970.0,2.38935122]
[1759167605506,0.125736,113980.0,113970.0,2.35787329]
[1759167606513,0.025,113980.0,113970.0,2.35787329]
[1759167607614,0.1008467,114000.0,113990.0,0.0876684]
[1759167607803,0.1008467,114000.0,113990.0,1.17042046]
[1759167608005,0.1008467,114000.0,113990.0,1.97326046]
[1759167608905,0.1098467,114000.0,113990.0,1.97326046]
[1759167609108,0.1098467,114000.0,113990.0,2.00469987]
[1759167609613,0.1158467,114000.0,113990.0,2.00469987]
[1759167609800,0.1158467,114000.0,113990.0,1.20185987]
[1759167610000,0.1158467,114000.0,113990.0,2.00465987]
[1759167610811,0.1158467,114000.0,113990.0,1.98108031]
[1759167612014,0.1158467,114000.0,113990.0,1.63189406]
[1759167612614,0.1158467,114000.0,113990.0,1.65547839]
[1759167613409,0.1158467,114000.0,113990.0,2.00466495]
[1759167613607,0.1158467,114000.0,113990.0,2.01325706]
[1759167614315,0.02818,114000.0,113990.0,2.33885867]
[1759167614507,0.01504,114000.0,113990.0,2.39768931]
[1759167615610,4e-05,114000.0,113990.0,2.39768931]
[1759167615917,4e-05,114000.0,113990.0,2.40468931]
[1759167616117,4e-05,114000.0,113990.0,2.39768931]
[1759167616812,4e-05,114000.0,113990.0,2.40468931]
[1759167617316,0.0133,114000.0,113990.0,1.60188931]
[1759167617504,0.1240608,114000.0,113990.0,0.8072563]
[1759167617707,0.1240608,114000.0,113990.0,2.3958973]
[1759167617918,0.1240608,114000.0,113990.0,2.04671105]
[1759167618516,0.1240608,114000.0,113990.0,2.3958973]
[1759167619612,0.0133,114000.0,113990.0,2.40479626]
[1759167619815,0.1009609,114000.0,113990.0,2.35757937]
[1759167620516,0.1009609,114000.0,113990.0,2.34868041]
[1759167621514,0.0133,114000.0,113990.0,2.35747566]
[1759167625921,4e-05,114000.0,113990.0,2.35747566]
[1759167627218,4e-05,114000.0,113990.0,2.40469255]
[1759167628916,0.01287,114000.0,113990.0,2.40469255]
[1759167633519,0.01287,114000.0,113990.0,2.38102464]
[1759167634326,0.01287,114000.0,113990.0,2.03161752]
[1759167634518,4e-05,114000.0,113990.0,2.03161752]
[1759167636126,0.01287,114000.0,113990.0,2.03161752]
[1759167636329,0.1005309,114000.0,113990.0,2.03161752]
[1759167637027,0.01287,114000.0,113990.0,2.03161752]
[1759167637328,0.01287,114000.0,113990.0,2.00806854]
[1759167642029,0.01287,114000.0,113990.0,2.02859432]
[1759167642830,0.01287,114000.0,113990.0,2.00806854]
[1759167643534,0.01287,114000.0,113990.0,2.02384602]
[1759167643728,0.01287,114000.0,113990.0,1.67488064]
[1759167643934,0.1005312,114000.0,113990.0,2.02384602]
[1759167644135,0.01287,114000.0,113990.0,2.02384602]
[1759167644435,0.01287,114000.0,113990.0,2.02381651]
[1759167646637,0.01287,114000.0,113990.0,1.97662913]
[1759167649542,4e-05,114000.0,113990.0,1.97662913]
[1759167650538,0.01402,114000.0,113990.0,1.97662913]
[1759167651135,0.01402,114000.0,113990.0,2.02381699]
[1759167654449,0.01402,114000.0,113990.0,1.97662913]
[1759167654958,4e-05,114000.0,113990.0,2.37278208]
[1759167655159,4e-05,114000.0,113990.0,2.32559451]
[1759167655860,4e-05,114000.0,113990.0,1.97662913]
[1759167656761,4e-05,114000.0,113990.0,2.32559451]
[1759167660062,4e-05,114000.0,113990.0,2.38863499]
[1759167662761,4e-05,114000.0,113990.0,2.32559451]
[1759167663570,4e-05,114000.0,113990.0,2.78863499]
[1759167664971,4e-05,114000.0,113990.0,2.78163499]
[1759167665868,0.01306,114020.0,114010.0,0.0876536]
[1759167666069,0.1230031,114030.0,114020.0,0.0876459]
[1759167666369,0.1230031,114030.0,114020.0,0.85238424]
[1759167666763,0.1230031,114030.0,114020.0,0.76473834]
[1759167667160,0.1229975,114030.0,114020.0,0.85238354]
[1759167667367,0.1229975,114030.0,114020.0,0.84454602]
[1759167668968,0.5229975,114030.0,114020.0,0.82879163]
[1759167669960,0.5229975,114030.0,114020.0,1.54298643]
[1759167670272,0.5229975,114030.0,114020.0,1.63063193]
[1759167672768,0.87196288,114030.0,114020.0,0.39218105]
[1759167672963,0.87196288,114030.0,114020.0,0.8253654]
[1759167673273,0.88982372,114030.0,114020.0,0.8253654]
[1759167673573,0.54085834,114030.0,114020.0,0.8253654]
[1759167673970,0.14085834,114030.0,114020.0,1.17433078]
[1759167675071,0.14085834,114030.0,114020.0,1.26197638]
[1759167677377,0.14085834,114030.0,114020.0,1.26197628]
[1759167679074,0.14085834,114030.0,114020.0,1.17433078]
[1759167679278,0.14085834,114030.0,114020.0,0.8253654]
[1759167680378,0.48982372,114030.0,114020.0,0.8253654]
[1759167680572,1.25062372,114030.0,114020.0,0.80184]
[1759167680773,0.1231859,114020.0,114010.0,1.1860454]
[1759167681074,0.47215128,114020.0,114010.0,0.8252454]
[1759167681283,0.87215128,114020.0,114010.0,0.80172]
[1759167683683,0.5231859,114020.0,114010.0,0.80172]
[1759167683883,0.87215128,114020.0,114010.0,0.80172]
[1759167686882,0.5231859,114020.0,114010.0,1.23833898]
[1759167687879,0.5231859,114020.0,114010.0,1.59913898]
[1759167690086,0.5231859,114020.0,114010.0,1.51148538]
[1759167693188,0.87215128,114020.0,114010.0,0.0235254]
[1759167693385,0.1231936,114010.0,114000.0,0.74]
[1759167693686,0.47215898,114010.0,114000.0,0.7635254]
[1759167694092,0.1231936,114010.0,114000.0,0.7635254]
[1759167694288,0.47215898,114010.0,114000.0,0.8511867]
[1759167694477,0.1231936,114010.0,114000.0,1.11249078]
[1759167694682,0.1231936,114010.0,114000.0,1.20215208]
[1759167695177,0.1231936,114010.0,114000.0,1.20015208]
[1759167696288,0.47220898,114010.0,114000.0,1.11254078]
[1759167697189,0.1231936,114010.0,114000.0,1.11254078]
[1759167697794,0.19503871,114010.0,114000.0,1.46155616]
[1759167698187,0.19503871,114010.0,114000.0,1.54921776]
[1759167698888,0.1008536,114010.0,114000.0,1.91001776]
[1759167699096,0.1008536,114010.0,114000.0,1.94139881]
[1759167699282,0.1008536,114010.0,114000.0,1.91787341]
[1759167699683,0.0132,114010.0,114000.0,2.31787341]
[1759167699889,0.10085,114020.0,114010.0,0.0876539]
[1759167700094,0.10085,114020.0,114010.0,0.82100125]
[1759167700395,0.10085,114020.0,114010.0,0.8523823]
[1759167700594,0.12319,114020.0,114010.0,0.8523823]
[1759167701789,0.10085,114020.0,114010.0,0.8523823]
[1759167701994,0.10085,114020.0,114010.0,1.20139768]
[1759167702197,0.10085,114020.0,114010.0,1.20140013]
[1759167703403,0.10085,114020.0,114010.0,1.17786571]
[1759167703893,0.10085,114020.0,114010.0,0.82885033]
[1759167704094,0.12319,114020.0,114010.0,0.82885033]
[1759167704294,0.12319,114020.0,114010.0,1.17786571]
[1759167707103,0.10085,114020.0,114010.0,1.17786571]
[1759167709399,0.10085,114020.0,114010.0,0.82885033]
[1759167709604,0.12232,114020.0,114010.0,1.17786571]
[1759167710506,0.12232,114020.0,114010.0,0.82885033]
[1759167714508,0.47133538,114020.0,114010.0,0.39218105]
[1759167714710,0.47133538,114020.0,114010.0,0.40394123]
[1759167715210,0.47133538,114020.0,114010.0,1.18207643]
[1759167715602,1.22035076,114020.0,114010.0,0.825228]
[1759167715910,1.58115076,114020.0,114010.0,0.023548]
[1759167716107,0.0876543,114010.0,114000.0,1.20562443]
[1759167716309,0.44958968,114010.0,114000.0,1.20562443]
[1759167716698,0.47105968,114010.0,114000.0,0.85660905]
[1759167716904,0.47105968,114010.0,114000.0,1.20562443]
[1759167717208,0.1220443,114010.0,114000.0,2.00310181]
[1759167717405,0.1220443,114010.0,114000.0,1.98155381]
[1759167718410,0.1220443,114010.0,114000.0,2.0051011]
[1759167718910,0.19355985,114010.0,114000.0,2.0051011]
[1759167719411,0.54257523,114010.0,114000.0,1.65608572]
[1759167719713,0.19355985,114010.0,114000.0,1.9174391]
[1759167721304,0.54257523,114010.0,114000.0,1.56842372]
[1759167723518,0.54257523,114010.0,114000.0,1.54487643]
[1759167723926,0.56063675,114010.0,114000.0,1.89389181]
[1759167725329,0.56063675,114010.0,114000.0,1.54487643]
[1759167726425,0.56921315,114010.0,114000.0,1.54487643]
[1759167727823,0.56063675,114010.0,114000.0,1.63253843]
[1759167730429,0.21162137,114010.0,114000.0,1.63253843]
[1759167730636,0.21162137,114010.0,114000.0,1.98155381]
[1759167733540,0.21162137,114010.0,114000.0,1.97370704]
[1759167743143,0.21162137,114010.0,114000.0,2.00508809]
[1759167743341,0.21162137,114010.0,114000.0,1.91742609]
[1759167743536,0.21162137,114010.0,114000.0,1.24299649]
[1759167743739,0.21162137,114010.0,114000.0,1.94102725]
[1759167744236,0.56063675,114010.0,114000.0,1.94102725]
[1759167745044,0.56063675,114010.0,114000.0,1.9096462]
[1759167745944,0.56063675,114010.0,114000.0,1.56063082]
[1759167746143,0.21162137,114010.0,114000.0,1.9096462]
[1759167746336,0.21162137,114010.0,114000.0,1.9973081]
[1759167746537,0.56063675,114010.0,114000.0,1.9973081]
[1759167747141,0.21162137,114010.0,114000.0,1.9096462]
[1759167747434,0.56063675,114010.0,114000.0,1.56063082]
[1759167749847,0.56063675,114010.0,114000.0,1.9096462]
[1759167750347,0.56063675,114010.0,114000.0,1.56063082]
[1759167750646,0.21162137,114010.0,114000.0,1.64829272]
[1759167750851,0.21162137,114010.0,114000.0,1.9973081]
[1759167755452,0.21162137,114010.0,114000.0,1.29927734]
[1759167755653,0.21162137,114010.0,114000.0,1.21161544]
[1759167755853,0.21162137,114010.0,114000.0,1.9096462]
[1759167756052,0.21162137,114010.0,114000.0,1.56063082]
[1759167756449,0.56063675,114010.0,114000.0,1.56063082]
[1759167756647,0.56063675,114010.0,114000.0,1.21161544]
[1759167756852,0.56063675,114010.0,114000.0,1.56063082]
[1759167758354,0.21162137,114010.0,114000.0,1.56063532]
[1759167764063,0.21162137,114010.0,114000.0,1.21161544]
[1759167764257,0.21162137,114010.0,114000.0,1.56063532]
[1759167768862,0.21162137,114010.0,114000.0,1.21161544]
[1759167769067,0.21162137,114010.0,114000.0,1.56063532]
[1759167771467,0.21162137,114010.0,114000.0,1.21161544]
[1759167771667,0.21162137,114010.0,114000.0,1.56063532]
[1759167772870,0.21166137,114010.0,114000.0,1.56063532]
[1759167773471,0.21166137,114010.0,114000.0,1.64829712]
[1759167773771,0.21166137,114010.0,114000.0,1.63257919]
[1759167783581,0.21166137,114010.0,114000.0,1.64829712]
[1759167783976,0.21166137,114010.0,114000.0,1.29927724]
[1759167784280,0.21166137,114010.0,114000.0,1.64829712]
[1759167785577,0.21166137,114010.0,114000.0,1.29927724]
[1759167785778,0.21166137,114010.0,114000.0,1.64829712]
[1759167786475,0.21166137,114010.0,114000.0,1.29927724]
[1759167786676,0.21166137,114010.0,114000.0,1.64829712]
[1759167796790,0.21166137,114010.0,114000.0,1.56063532]
[1759167797091,0.21166137,114010.0,114000.0,1.21161544]
[1759167797283,0.21166137,114010.0,114000.0,1.56063532]
[1759167798985,0.21166137,114010.0,114000.0,1.21161544]
[1759167799394,0.21166137,114010.0,114000.0,0.85081544]
[1759167801494,0.21166137,114010.0,114000.0,1.19983532]
[1759167802194,0.21166137,114010.0,114000.0,1.15269988]
[1759167802993,0.21166137,114010.0,114000.0,1.19983532]
[1759167803788,0.21166137,114010.0,114000.0,0.85081544]
[1759167804083,0.21166137,114010.0,114000.0,1.19983532]
[1759167805190,0.21166137,114010.0,114000.0,0.85081544]
[1759167805394,0.21166137,114010.0,114000.0,1.19983532]
[1759167807992,0.21166137,114010.0,114000.0,1.18409933]
[1759167808991,0.21166137,114010.0,114000.0,0.83507945]
[1759167809192,0.21166137,114010.0,114000.0,1.18409933]
[1759167815506,0.21166137,114010.0,114000.0,0.83507945]
[1759167815998,0.21166137,114010.0,114000.0,1.18409933]
[1759167817106,0.21166137,114010.0,114000.0,0.83507945]
[1759167820207,0.56069547,114010.0,114000.0,1.18411355]
[1759167823703,1.70212528,114010.0,114000.0,0.002]
[1759167824014,2.53432898,114010.0,114000.0,0.002]
[1759167824505,1.38417488,114010.0,114000.0,0.002]
[1759167824701,2.18525488,114010.0,114000.0,0.002]
[1759167825311,2.12257547,114010.0,114000.0,0.002]
[1759167826500,2.1698787,114010.0,114000.0,0.002]
[1759167827606,1.3687987,114010.0,114000.0,0.002]
[1759167827803,2.1698787,114010.0,114000.0,0.002]
[1759167828515,2.12257547,114010.0,114000.0,0.002]
[1759167829416,0.60399155,114010.0,114000.0,0.3510341]
[1759167829712,0.59222565,114010.0,114000.0,0.3510341]
[1759167829912,0.24319155,114010.0,114000.0,0.7877298]
[1759167830801,0.24319155,114010.0,114000.0,1.5888098]
[1759167831005,0.21166137,114010.0,114000.0,1.5888098]
[1759167832315,0.21166137,114010.0,114000.0,1.5011482]
[1759167832714,0.24318553,114010.0,114000.0,1.5011482]
[1759167833615,0.21166137,114010.0,114000.0,1.5011482]
[1759167833817,0.21166137,114010.0,114000.0,0.80308]
[1759167834115,0.21166137,114010.0,114000.0,1.5011482]
[1759167835119,0.21166137,114010.0,114000.0,1.5888098]
[1759167837319,0.21166137,114010.0,114000.0,1.61231802]
[1759167838619,0.21166137,114010.0,114000.0,1.52465642]
[1759167844826,0.19359985,114010.0,114000.0,1.52465642]
[1759167845329,0.54263395,114010.0,114000.0,0.02550822]
[1759167845528,1.13602536,114010.0,114000.0,0.82646822]
[1759167845823,1.13602536,114010.0,114000.0,0.02550822]
[1759167846025,1.13602536,114010.0,114000.0,0.002]
[1759167848328,0.92107632,114010.0,114000.0,0.002]
[1759167853730,0.92107632,114010.0,114000.0,0.02550822]
[1759167858528,0.90343395,114010.0,114000.0,0.02550822]
[1759167858726,0.92140137,114010.0,114000.0,0.02550822]
[1759167861628,0.95292553,114010.0,114000.0,0.02550822]
[1759167862032,0.93495811,114010.0,114000.0,0.02550822]
[1759167862331,0.95276172,114010.0,114000.0,0.02550822]
[1759167863531,0.95276172,114010.0,114000.0,0.37454232]
[1759167863825,1.32123756,114010.0,114000.0,0.02550822]
[1759167864327,2.12195756,114010.0,114000.0,0.02550822]
[1759167866136,1.77292346,114010.0,114000.0,0.02550822]
[1759167866342,2.12195756,114010.0,114000.0,0.37454232]
[1759167869140,2.15348172,114010.0,114000.0,0.3510341]
[1759167871141,1.80444762,114010.0,114000.0,0.3510341]
[1759167871343,2.15348172,114010.0,114000.0,0.3510341]
[1759167871742,1.79268172,114010.0,114000.0,0.3510341]
[1759167872142,1.44379483,114010.0,114000.0,0.3510341]
[1759167872346,1.79282893,114010.0,114000.0,0.3510341]
[1759167872531,1.04375483,114010.0,114000.0,0.7000682]
[1759167872736,0.24307483,114010.0,114000.0,0.7000682]
[1759167873736,0.21155067,114010.0,114000.0,0.72357642]
[1759167874642,0.21155067,114010.0,114000.0,0.37454232]
[1759167874842,0.21155067,114010.0,114000.0,0.72357642]
[1759167875336,0.56058477,114010.0,114000.0,0.40588662]
[1759167875643,0.21148847,114010.0,114000.0,0.3823784]
[1759167877341,0.21148847,114010.0,114000.0,0.7314125]
[1759167877942,0.21148847,114010.0,114000.0,0.3823784]
[1759167878141,0.21148847,114010.0,114000.0,0.7314125]
[1759167878439,0.56052257,114010.0,114000.0,0.7314125]
[1759167879538,0.56052257,114010.0,114000.0,0.3823784]
[1759167880446,0.56054963,114010.0,114000.0,0.02554791]
[1759167881236,0.56054963,114010.0,114000.0,0.0333443]
[1759167881642,0.21148847,114010.0,114000.0,0.0333443]
[1759167882149,0.21148847,114010.0,114000.0,0.40595256]
[1759167883449,0.21148847,114010.0,114000.0,0.38240546]
[1759167883648,0.21148847,114010.0,114000.0,0.37460714]
[1759167887355,0.21148847,114010.0,114000.0,0.73540714]
[1759167887660,0.21148847,114010.0,114000.0,0.76675144]